lending/lending_fUSD_20251111
["ID","MTS","AMOUNT","RATE_DAILY","PERIOD"]
[393641060,1762871469481,-151.0,0.00040084,120]
[393641061,1762871469490,-617.174611,0.00040084,120]
[393641062,1762871469502,-151.0,0.00040084,120]
[393641063,1762871469514,-439.097942,0.00040084,15]
[393641064,1762871469524,-617.174611,0.00040084,120]
[393641065,1762871469534,-617.174611,0.00040084,120]
[393641066,1762871469544,-151.0,0.00040084,120]
[393641067,1762871469554,-439.097942,0.00040084,15]
[393641068,1762871469563,-439.097942,0.00040084,15]
[393641069,1762871469573,-151.0,0.00040084,120]
[393641070,1762871469582,-617.174611,0.00040084,120]
[393641071,1762871469595,-151.0,0.00040084,120]
[393641072,1762871469604,-617.174611,0.00040084,120]
[393641073,1762871469614,-439.097942,0.00040084,15]
[393641074,1762871469623,-151.0,0.00040084,120]
[393641075,1762871469632,-151.0,0.00040084,120]
[393641076,1762871469642,-617.174611,0.00040084,120]
[393641077,1762871469654,-151.0,0.00040084,120]
[393641078,1762871469664,-439.097942,0.00040084,15]
[393641079,1762871469673,-151.0,0.00040084,120]
[393641080,1762871469683,-617.174611,0.00040084,120]
[393641081,1762871469693,-439.097942,0.00040084,15]
[393641082,1762871469702,-151.0,0.00040084,120]
[393641083,1762871469711,-519.878476,0.00040084,120]
[393641084,1762871469723,-617.174611,0.00040084,120]
[393641085,1762871469733,-151.0,0.00040084,120]
[393641086,1762871469743,-439.097942,0.00040084,15]
[393641087,1762871469753,-519.878476,0.00040084,120]
[393641088,1762871469763,-151.0,0.00040084,120]
[393641089,1762871469773,-151.0,0.00040084,120]
[393641090,1762871469783,-617.174612,0.00040084,120]
[393641091,1762871469791,-519.878476,0.00040084,120]
[393641092,1762871469801,-439.097942,0.00040084,15]
[393641093,1762871469810,-182.491487,0.00040084,120]
[393641094,1762871469820,-151.0,0.00040084,120]
[393641095,1762871469831,-519.878476,0.00040084,120]
[393641096,1762871469841,-439.097942,0.00040084,15]
[393641097,1762871469852,-151.0,0.00040084,120]
[393641098,1762871469863,-439.097942,0.00040084,15]
[393641099,1762871469873,-519.878476,0.00040084,120]
[393641100,1762871469883,-151.0,0.00040084,120]
[393641101,1762871469893,-439.097942,0.00040084,15]
[393641102,1762871469903,-151.0,0.00040084,120]
[393641103,1762871469913,-151.962619,0.00040084,120]
[393641104,1762871469924,-519.878476,0.00040084,120]
[393641105,1762871469934,-439.097946,0.00040084,15]
[393641106,1762871469944,-151.0,0.00040084,120]
[393641107,1762871469954,-151.962619,0.00040084,120]
[393641108,1762871469964,-519.878476,0.00040084,120]
[393641109,1762871469978,-151.0,0.00040084,120]
[393641110,1762871469987,-151.962619,0.00040084,120]
[393641111,1762871469997,-151.0,0.00040084,120]
[393641112,1762871470007,-519.878476,0.00040084,120]
[393641113,1762871470017,-151.962619,0.00040084,120]
[393641114,1762871470027,-151.0,0.00040084,120]
[393641115,1762871470036,-151.0,0.00040084,120]
[393641116,1762871470046,-272.321245,0.00040084,120]
[393641117,1762871470055,-519.878476,0.00040084,120]
[393641118,1762871470065,-151.962619,0.00040084,120]
[393641119,1762871470075,-152.263414,0.00040084,120]
[393641120,1762871470084,-164.376064,0.00040084,120]
[393641121,1762871470094,-519.878476,0.00040084,120]
[393641122,1762871470103,-151.962619,0.00040084,120]
[393641123,1762871470112,-519.878476,0.00040084,120]
[393641124,1762871470122,-151.962619,0.00040084,120]
[393641125,1762871470131,-391.261153,0.00040084,120]
[393641126,1762871470140,-519.878476,0.00040084,120]
[393641127,1762871470150,-160.983514,0.00040084,120]
[393641128,1762871470159,-151.962619,0.00040084,120]
[393641129,1762871470169,-519.878476,0.00040084,120]
[393641130,1762871470178,-391.261153,0.00040084,120]
[393641131,1762871470188,-519.878476,0.00040084,120]
[393641132,1762871470197,-391.261153,0.00040084,120]
[393641133,1762871470211,-151.962619,0.00040084,120]
[393641134,1762871470222,-519.878476,0.00040084,120]
[393641135,1762871470231,-391.261153,0.00040084,120]
[393641136,1762871470241,-151.962619,0.00040084,120]
[393641137,1762871470250,-151.0,0.00040084,120]
[393641138,1762871470261,-391.261153,0.00040084,120]
[393641139,1762871470270,-519.878476,0.00040084,120]
[393641140,1762871470280,-152.681235,0.00040084,120]
[393641141,1762871470290,-391.261153,0.00040084,120]
[393641142,1762871470300,-151.962619,0.00040084,120]
[393641143,1762871470310,-519.878476,0.00040084,120]
[393641144,1762871470319,-151.962619,0.00040084,120]
[393641145,1762871470329,-391.261153,0.00040084,120]
[393641146,1762871470339,-519.878476,0.00040084,120]
[393641147,1762871470348,-151.962619,0.00040084,120]
[393641148,1762871470358,-391.261153,0.00040084,120]
[393641149,1762871470368,-151.962619,0.00040084,120]
[393641150,1762871470378,-519.878476,0.00040084,120]
[393641151,1762871470389,-391.261153,0.00040084,120]
[393641152,1762871470400,-519.878468,0.00040084,120]
[393641153,1762871470409,-290.361027,0.00040084,120]
[393641154,1762871470419,-151.962619,0.00040084,120]
[393641155,1762871470429,-391.261153,0.00040084,120]
[393641156,1762871470439,-290.361027,0.00040084,120]
[393641157,1762871470448,-151.962619,0.00040084,120]
[393641158,1762871470458,-391.261153,0.00040084,120]
[393641159,1762871470471,-151.0,0.00040084,120]
[393641160,1762871470481,-290.361027,0.00040084,120]
[393641161,1762871470491,-151.962619,0.00040084,120]
[393641162,1762871470502,-151.0,0.00040084,120]
[393641163,1762871470514,-151.0,0.00040084,120]
[393641164,1762871470524,-290.361027,0.00040084,120]
[393641165,1762871470534,-391.261153,0.00040084,120]
[393641166,1762871470546,-151.962619,0.00040084,120]
[393641167,1762871470555,-151.0,0.00040084,120]
[393641168,1762871470565,-151.0,0.00040084,120]
[393641169,1762871470574,-391.261153,0.00040084,120]
[393641170,1762871470583,-290.361027,0.00040084,120]
[393641171,1762871470593,-151.962619,0.00040084,120]
[393641172,1762871470602,-151.0,0.00040084,120]
[393641173,1762871470611,-151.0,0.00040084,120]
[393641174,1762871470620,-290.361027,0.00040084,120]
[393641175,1762871470630,-151.0,0.00040084,120]
[393641176,1762871470639,-151.962627,0.00040084,120]
[393641177,1762871470648,-151.0,0.00040084,120]
[393641178,1762871470658,-151.0,0.00040084,120]
[393641179,1762871470668,-290.361027,0.00040084,120]
[393641180,1762871470677,-151.0,0.00040084,120]
[393641181,1762871470687,-391.261153,0.00040084,120]
[393641182,1762871470696,-151.0,0.00040084,120]
[393641183,1762871470706,-290.361027,0.00040084,120]
[393641184,1762871470716,-154.057735,0.00040084,120]
[393641185,1762871470727,-391.261153,0.00040084,120]
[393641186,1762871470736,-182.828569,0.00040084,120]
[393641187,1762871470745,-290.361027,0.00040084,120]
[393641188,1762871470755,-391.261153,0.00040084,120]
[393641189,1762871470764,-290.361027,0.00040084,120]
[393641190,1762871470775,-391.261153,0.00040084,120]
[393641191,1762871470784,-290.361027,0.00040084,120]
[393641192,1762871470798,-391.261153,0.00040084,120]
[393641193,1762871470808,-290.361027,0.00040084,120]
[393641194,1762871470817,-391.261153,0.00040084,120]
[393641195,1762871470826,-391.261162,0.00040084,120]
[393641196,1762871470834,-290.361027,0.00040084,120]
[393641197,1762871470843,-290.361027,0.00040084,120]
[393641198,1762871470853,-290.361027,0.00040084,120]
[393641199,1762871470862,-290.361027,0.00040084,120]
[393641200,1762871470871,-290.361027,0.00040084,120]
[393641201,1762871470881,-290.361027,0.00040084,120]
[393641202,1762871470891,-290.361027,0.00040084,120]
[393641203,1762871470901,-290.361031,0.00040084,120]
[393641204,1762871470911,-151.0,0.00040084,5]
[393641205,1762871470920,-266.930809,0.00040084,5]
[393641206,1762871470930,-151.0,0.00040084,120]
[393641207,1762871470940,-151.0,0.00040084,120]
[393641208,1762871470950,-151.0,0.00040084,120]
[393641209,1762871470960,-154.910359,0.00040084,120]
[393641210,1762871470971,-151.0,0.00040084,120]
[393641211,1762871470981,-151.0,0.00040084,120]
[393641212,1762871470991,-193.126938,0.00040084,120]
[393641213,1762871471000,-151.0,0.00040084,120]
[393641214,1762871471009,-193.126938,0.00040084,120]
[393641215,1762871471019,-151.0,0.00040084,120]
[393641216,1762871471028,-193.126938,0.00040084,120]
[393641217,1762871471037,-151.0,0.00040084,120]
[393641218,1762871471047,-193.126938,0.00040084,120]
[393641219,1762871471056,-151.0,0.00040084,120]
[393641220,1762871471066,-193.126938,0.00040084,120]
[393641221,1762871471075,-151.0,0.00040084,120]
[393641222,1762871471085,-193.126938,0.00040084,120]
[393641223,1762871471094,-193.126938,0.00040084,120]
[393641224,1762871471104,-151.0,0.00040084,120]
[393641225,1762871471113,-193.126938,0.00040084,120]
[393641226,1762871471122,-151.0,0.00040084,120]
[393641227,1762871471132,-193.126938,0.00040084,120]
[393641228,1762871471141,-156.596614,0.00040084,120]
[393641229,1762871471151,-193.126938,0.00040084,120]
[393641230,1762871471161,-193.126938,0.00040084,120]
[393641231,1762871471171,-193.126938,0.00040084,120]
[393641232,1762871471180,-193.126938,0.00040084,120]
[393641233,1762871471191,-193.126938,0.00040084,120]
[393641234,1762871471200,-151.0,0.00040084,120]
[393641235,1762871471210,-193.126938,0.00040084,120]
[393641236,1762871471222,-151.0,0.00040084,120]
[393641237,1762871471231,-193.126938,0.00040084,120]
[393641238,1762871471241,-151.0,0.00040084,120]
[393641239,1762871471250,-193.126938,0.00040084,120]
[393641240,1762871471259,-193.126938,0.00040084,120]
[393641241,1762871471269,-151.0,0.00040084,120]
[393641242,1762871471279,-193.126938,0.00040084,120]
[393641243,1762871471288,-151.0,0.00040084,120]
[393641244,1762871471298,-151.0,0.00040084,120]
[393641245,1762871471307,-193.126928,0.00040084,120]
[393641246,1762871471316,-151.0,0.00040084,120]
[393641247,1762871471325,-151.0,0.00040084,120]
[393641248,1762871471335,-151.0,0.00040084,120]
[393641249,1762871471344,-151.0,0.00040084,120]
[393641250,1762871471353,-151.0,0.00040084,120]
[393641251,1762871471363,-151.0,0.00040084,120]
[393641252,1762871471373,-151.0,0.00040084,120]
[393641253,1762871471382,-151.0,0.00040084,120]
[393641254,1762871471391,-151.0,0.00040084,120]
[393641255,1762871471400,-151.0,0.00040084,120]
[393641256,1762871471410,-151.0,0.00040084,120]
[393641257,1762871471419,-151.0,0.00040084,120]
[393641258,1762871471428,-151.0,0.00040084,120]
[393641259,1762871471438,-151.0,0.00040084,120]
[393641260,1762871471447,-270.08838,0.00040084,120]
[393641261,1762871471458,-151.0,0.00040084,120]
[393641262,1762871471467,-151.0,0.00040084,120]
[393641263,1762871471478,-151.0,0.00040084,120]
[393641264,1762871471487,-151.0,0.00040084,120]
[393641265,1762871471497,-151.0,0.00040084,120]
[393641266,1762871471510,-275.97057,0.00040084,120]
[393641267,1762871471520,-151.0,0.00040084,120]
[393641268,1762871471529,-151.0,0.00040084,120]
[393641269,1762871471539,-173.500848,0.00040084,120]
[393641270,1762871471548,-234.39226363,0.00040085,31]
[393641271,1762871471558,-430849.16989819,0.00040085,7]
[393641272,1762871471567,-1392569.43326165,0.00040085,7]
[393641273,1762871471775,-265.58581123,0.00040085,7]
[393641274,1762871471787,-11774.71006907,0.00040085,7]
[393641275,1762871471798,-7436.56215345,0.00040085,7]
[393641276,1762871471873,-391.11641811,0.000179,2]
[393641277,1762871471882,-345.52742667,0.00034599,2]
[393641278,1762871471893,-373.96952708,0.00034599,2]
[393641279,1762871471906,-1454.77719223,0.00034599,2]
[393641280,1762871471915,-2340.99714369,0.00039335,2]
[393641281,1762871471926,-4323.00285631,0.00039335,2]
[393641282,1762871471935,-21814.49714369,0.00040085,7]
[393641283,1762871471947,-1038.168593,0.00040085,7]
[393641284,1762871471966,-175.64,0.00032619,120]
[393641285,1762871471976,-904.48898,0.00040085,7]
[393641286,1762871472120,-1408.90569754,0.00040085,7]
[393641287,1762871472135,-2451.1887104,0.00040085,7]
[393641288,1762871472147,-16463.94083465,0.00040085,7]
[393641289,1762871472158,-3530.0,0.00040085,7]
[393641290,1762871472169,-330.1908345,0.00040085,7]
[393641291,1762871472180,-8591.90247064,0.00040085,7]
[393641292,1762871472192,-1383.22654708,0.00040085,7]
[393641293,1762871472203,-6652.16,0.00040085,7]
[393641294,1762871475247,-367.38704461,0.00017999,2]
[393641296,1762871540911,500.0,0.00017999,2]
[393641297,1762871541168,500.0,0.00017999,2]
[393641299,1762871579438,-391.11641805,0.00020354,2]
[393641300,1762871579469,-478.44322026,0.00022805,2]
[393641301,1762871579513,-391.11641805,0.00022808,2]
[393641304,1762871703167,42893.64990903,0.000149,10]
[393641305,1762871703192,7126.93689903,0.000149,10]
[393641306,1762871703225,31827.62168967,0.000149,10]
[393641314,1762872204061,-277.69780721,0.00032,120]
[393641315,1762872204108,-177.02177303,0.00032,120]
[393641316,1762872204157,-899.55385952,0.00032,120]
[393641317,1762872204206,-189.09595777,0.00032,120]
[393641318,1762872204252,-277.69780721,0.00033,120]
[393641319,1762872204297,-177.02177303,0.00033,120]
[393641320,1762872204345,-899.55385952,0.00033,120]
[393641321,1762872204390,-189.09595777,0.00033,120]
[393641322,1762872204434,-277.69780721,0.000339,120]
[393641323,1762872204479,-899.55385952,0.000339,120]
[393641324,1762872204525,-189.09595777,0.000339,120]
[393641325,1762872204567,-2984.134,0.000339,37]
[393641326,1762872204611,-249.52904471,0.000339,37]
[393641327,1762872204654,-1250.0,0.00034977,5]
[393641328,1762872204696,-277.69780721,0.00035,120]
[393641329,1762872204740,-899.55385952,0.00035,120]
[393641330,1762872204784,-189.09595777,0.00035,120]
[393641331,1762872204836,-297.77367868,0.00035117,7]
[393641332,1762872204880,-500.0,0.00035212,30]
[393641333,1762872204930,-500.0,0.0003522,30]
[393641334,1762872204975,-500.0,0.0003526,30]
[393641335,1762872205020,-500.0,0.00035351,30]
[393641336,1762872205068,-500.0,0.00035449,30]
[393641337,1762872205115,-500.0,0.00035491,30]
[393641338,1762872205159,-500.0,0.00035583,30]
[393641339,1762872205203,-500.0,0.00035597,30]
[393641340,1762872205249,-150.0,0.00035769,120]
[393641341,1762872205292,-500.0,0.00035772,30]
[393641342,1762872205336,-500.0,0.00035988,30]
[393641343,1762872205378,-500.0,0.00035995,30]
[393641344,1762872205421,-277.69780721,0.00036,120]
[393641345,1762872205465,-899.55385952,0.00036,120]
[393641346,1762872205508,-164.0,0.00036,120]
[393641347,1762872205551,-189.09595777,0.00036,120]
[393641348,1762872205591,-500.84602624,0.00036,5]
[393641349,1762872205638,-500.0,0.00036,5]
[393641350,1762872205680,-500.0,0.00036015,30]
[393641351,1762872205724,-1000.0,0.00036058,30]
[393641352,1762872205768,-1000.0,0.00036058,30]
[393641353,1762872205811,-500.0,0.00036071,30]
[393641354,1762872205854,-150.0,0.00036168,30]
[393641355,1762872205898,-500.0,0.00036274,30]
[393641356,1762872205941,-500.0,0.00036354,30]
[393641357,1762872205985,-192.35,0.00036391,120]
[393641358,1762872206030,-500.0,0.00036649,30]
[393641359,1762872206072,-500.0,0.00036918,30]
[393641360,1762872206117,-186.29272794,0.000372,120]
[393641361,1762872206161,-500.0,0.00037292,30]
[393641362,1762872206207,-156.65,0.0003733,60]
[393641363,1762872206253,-156.65,0.0003733,60]
[393641364,1762872206299,-153.38,0.00037345,60]
[393641365,1762872206350,-822.0,0.00037416,7]
[393641366,1762872206406,-156.65,0.0003743,60]
[393641367,1762872206456,-156.65,0.0003743,60]
[393641368,1762872206503,-153.38,0.00037445,60]
[393641369,1762872206550,-156.65,0.0003753,60]
[393641370,1762872206595,-156.65,0.0003753,60]
[393641371,1762872206639,-206.7102888,0.00037538,30]
[393641372,1762872206682,-153.38,0.00037545,60]
[393641373,1762872206727,-478.44322026,0.00037551,30]
[393641374,1762872206773,-156.65,0.0003763,60]
[393641375,1762872206819,-156.65,0.0003763,60]
[393641376,1762872206865,-500.0,0.00037635,30]
[393641377,1762872206911,-153.38,0.00037645,60]
[393641378,1762872206956,-211.15,0.0003766,60]
[393641379,1762872207005,-185.0,0.00037686,120]
[393641380,1762872207055,-185.0,0.00037714,7]
[393641381,1762872207103,-156.69805877,0.0003773,60]
[393641382,1762872207151,-185.0,0.00037734,7]
[393641383,1762872207196,-150.0,0.00037745,60]
[393641384,1762872207242,-150.0,0.00037745,60]
[393641385,1762872207285,-150.0,0.00037745,60]
[393641386,1762872207328,-159.48620506,0.00037745,60]
[393641387,1762872207530,-500.0,0.00037745,60]
[393641388,1762872207575,-150.0,0.00037745,60]
[393641389,1762872207619,-150.0,0.00037745,60]
[393641390,1762872207660,-150.47221411,0.00037745,60]
[393641391,1762872207701,-154.63310994,0.00037745,60]
[393641392,1762872207743,-150.0,0.00037745,60]
[393641393,1762872207787,-153.4028026,0.00037745,60]
[393641394,1762872207832,-500.0,0.00037835,30]
[393641395,1762872207874,-150.33339269,0.00037873,5]
[393641396,1762872207920,-500.0,0.0003788,30]
[393641397,1762872207965,-150.0,0.00037882,60]
[393641398,1762872208011,-150.0,0.00037882,60]
[393641399,1762872208057,-150.0,0.00037882,60]
[393641400,1762872208104,-500.0,0.00037882,60]
[393641401,1762872208150,-150.0,0.00037882,60]
[393641402,1762872208196,-150.0,0.00037882,60]
[393641403,1762872208240,-150.0,0.00037882,60]
[393641404,1762872208284,-500.0,0.0003789,30]
[393641405,1762872208328,-500.0,0.00037899,15]
[393641406,1762872208373,-265.27232515,0.00037899,15]
[393641407,1762872208416,-243.43683937,0.00038,120]
[393641408,1762872208460,-500.0,0.00038002,30]
[393641409,1762872208503,-150.0,0.00038019,60]
[393641410,1762872208550,-150.0,0.00038019,60]
[393641411,1762872208595,-150.0,0.00038019,60]
[393641412,1762872208639,-250.0,0.00038019,60]
[393641413,1762872208685,-151.42196463,0.00038019,60]
[393641414,1762872208730,-150.0,0.00038019,60]
[393641415,1762872208771,-150.0,0.00038019,60]
[393641416,1762872208814,-500.0,0.00038032,30]
[393641417,1762872208860,-822.0,0.00038065,7]
[393641418,1762872208908,-500.0,0.00038121,30]
[393641419,1762872208961,-251.96937689,0.00038156,60]
[393641420,1762872209003,-150.0,0.00038156,60]
[393641421,1762872209044,-150.0,0.00038156,60]
[393641422,1762872209085,-155.99056556,0.00038156,60]
[393641423,1762872209125,-204.61057853,0.00038156,60]
[393641424,1762872209167,-327.18682053,0.00038232,15]
[393641425,1762872209210,-150.0,0.00038293,60]
[393641426,1762872209255,-164.94975785,0.00038293,60]
[393641427,1762872209300,-185.0,0.00038346,7]
[393641428,1762872209342,-239.10151391,0.00038356,20]
[393641429,1762872209382,-176.19472212,0.00038356,20]
[393641430,1762872209422,-157.66338692,0.00038356,20]
[393641431,1762872209463,-327.18682046,0.00038421,15]
[393641432,1762872209501,-205.45059285,0.0003843,60]
[393641433,1762872209542,-500.0,0.00038505,30]
[393641434,1762872209581,-500.0,0.0003852,30]
[393641435,1762872209626,-327.18682046,0.00038611,15]
[393641436,1762872209667,-500.0,0.00038684,30]
[393641437,1762872209709,-822.0,0.00038693,7]
[393641438,1762872209755,-185.0,0.00038742,120]
[393641439,1762872209796,-500.0,0.00038756,30]
[393641440,1762872209841,-168.5411207,0.000388,120]
[393641441,1762872209887,-327.18682046,0.000388,15]
[393641442,1762872209933,-639.0,0.0003887,20]
[393641443,1762872209980,-164.09,0.000389,120]
[393641444,1762872210026,-190.996592,0.000389,60]
[393641445,1762872210073,-308.483177,0.000389,60]
[393641446,1762872210122,-306.224424,0.000389,60]
[393641447,1762872210167,-1000.0,0.000389,7]
[393641448,1762872210213,-185.0,0.00038936,7]
[393641449,1762872210259,-500.0,0.00038984,30]
[393641450,1762872210301,-327.18682046,0.0003899,15]
[393641451,1762872210343,-190.996592,0.00039032,60]
[393641452,1762872210385,-308.483177,0.00039032,60]
[393641453,1762872210427,-306.224424,0.00039032,60]
[393641454,1762872210469,-203.17726875,0.00039037,11]
[393641455,1762872210512,-500.0,0.00039071,30]
[393641456,1762872210555,-10606.37,0.00039099,14]
[393641457,1762872210600,-183.02845097,0.00039099,20]
[393641458,1762872210642,-155.92673057,0.00039099,20]
[393641459,1762872210682,-204.57156803,0.00039099,20]
[393641460,1762872210722,-316.04958422,0.00039099,20]
[393641461,1762872210767,-176.52703017,0.00039099,20]
[393641462,1762872210810,-158.93388875,0.00039099,20]
[393641463,1762872210849,-191.43960458,0.00039099,20]
[393641464,1762872210887,-338.33241856,0.00039099,20]
[393641465,1762872210927,-496.16782844,0.00039099,20]
[393641466,1762872210966,-339.45418503,0.00039099,20]
[393641467,1762872211007,-177.06897565,0.00039099,20]
[393641468,1762872211050,-245.88471285,0.00039099,20]
[393641469,1762872211092,-187.66993798,0.00039099,20]
[393641470,1762872211135,-219.11577884,0.00039099,20]
[393641471,1762872211177,-310.15649645,0.00039099,20]
[393641472,1762872211221,-180.37391705,0.00039099,20]
[393641473,1762872211263,-201.57466176,0.00039099,20]
[393641474,1762872211306,-500.0,0.00039099,20]
[393641475,1762872211350,-170.14206759,0.00039099,20]
[393641476,1762872211394,-185.0,0.00039114,120]
[393641477,1762872211435,-300.0,0.00039114,93]
[393641478,1762872211475,-190.996592,0.00039164,60]
[393641479,1762872211513,-161.956926,0.00039164,60]
[393641480,1762872211553,-308.483177,0.00039164,60]
[393641481,1762872211743,-306.224424,0.00039164,60]
[393641482,1762872211787,-327.18682046,0.00039179,15]
[393641483,1762872211832,-500.0,0.00039232,30]
[393641484,1762872211876,-639.0,0.0003927,20]
[393641485,1762872211916,-203.17726873,0.0003929,11]
[393641486,1762872211956,-190.996592,0.00039296,60]
[393641487,1762872211998,-161.956926,0.00039296,60]
[393641488,1762872212041,-308.483177,0.00039296,60]
[393641489,1762872212084,-306.224424,0.00039296,60]
[393641490,1762872212125,-500.0,0.00039314,30]
[393641491,1762872212167,-327.18682046,0.00039369,15]
[393641492,1762872212209,-185.0,0.00039381,7]
[393641493,1762872212249,-5516.0,0.000394,5]
[393641494,1762872212290,-160.603281,0.00039428,60]
[393641495,1762872212336,-160.603281,0.00039428,60]
[393641496,1762872212378,-166.908883,0.00039428,60]
[393641497,1762872212419,-161.665604,0.00039428,60]
[393641498,1762872212458,-166.908883,0.00039428,60]
[393641499,1762872212498,-159.182954,0.00039428,60]
[393641500,1762872212537,-190.996592,0.00039428,60]
[393641501,1762872212573,-161.956926,0.00039428,60]
[393641502,1762872212613,-308.483177,0.00039428,60]
[393641503,1762872212649,-306.224424,0.00039428,60]
[393641504,1762872212686,-2500.0,0.00039456,14]
[393641505,1762872212723,-2500.0,0.00039465,14]
[393641506,1762872212763,-2500.0,0.00039474,14]
[393641507,1762872212800,-2500.0,0.00039483,14]
[393641508,1762872212841,-2500.0,0.00039492,14]
[393641509,1762872212878,-327.18682046,0.00039558,15]
[393641510,1762872212916,-500.0,0.00039592,30]
[393641511,1762872212954,-500.0,0.00039593,30]
[393641512,1762872212992,-206.33121688,0.00039648,120]
[393641513,1762872213034,-639.0,0.00039671,20]
[393641514,1762872213075,-200.0,0.00039675,20]
[393641515,1762872213121,-159.47974888,0.00039689,20]
[393641516,1762872213168,-328.31116498,0.00039689,20]
[393641517,1762872213213,-256.62379447,0.00039689,20]
[393641518,1762872213256,-364.19796383,0.00039689,20]
[393641519,1762872213299,-298.98810944,0.00039689,20]
[393641520,1762872213342,-214.12735256,0.00039689,20]
[393641521,1762872213386,-182.88403196,0.00039689,20]
[393641522,1762872213430,-228.7863609,0.00039689,20]
[393641523,1762872213474,-10606.37,0.00039689,14]
[393641524,1762872213518,-292.36304035,0.00039689,20]
[393641525,1762872213561,-164.33865353,0.00039689,20]
[393641526,1762872213605,-213.22546405,0.00039689,20]
[393641527,1762872213649,-398.690062,0.00039689,20]
[393641528,1762872213690,-243.41920423,0.00039689,20]
[393641529,1762872213732,-483.06831784,0.00039689,20]
[393641530,1762872213773,-215.2723471,0.00039689,20]
[393641531,1762872213814,-159.13652812,0.00039689,20]
[393641532,1762872213860,-181.84197302,0.00039689,20]
[393641533,1762872213902,-367.0531293,0.00039689,20]
[393641534,1762872213945,-239.11556276,0.00039689,20]
[393641535,1762872213987,-174.02218984,0.00039689,20]
[393641536,1762872214035,-161.40927422,0.00039689,20]
[393641537,1762872214077,-366.31677455,0.00039689,20]
[393641538,1762872214123,-500.0,0.00039689,10]
[393641539,1762872214165,-356.09970755,0.00039689,20]
[393641540,1762872214209,-542.41025354,0.00039689,20]
[393641541,1762872214259,-500.0,0.00039689,20]
[393641542,1762872214308,-500.0,0.00039726,5]
[393641543,1762872214354,-327.18682046,0.00039748,15]
[393641544,1762872214397,-491.85145446,0.0003975,14]
[393641545,1762872214441,-500.0,0.00039763,30]
[393641546,1762872214486,-318.37,0.000398,60]
[393641547,1762872214531,-500.0,0.00039859,30]
[393641548,1762872214576,-500.0,0.00039882,30]
[393641549,1762872214620,-600.0,0.00039903,15]
[393641550,1762872214664,-600.0,0.00039903,15]
[393641551,1762872214707,-600.0,0.00039903,15]
[393641552,1762872214750,-600.0,0.00039903,15]
[393641553,1762872214802,-600.0,0.00039903,15]
[393641554,1762872214847,-600.0,0.00039903,15]
[393641555,1762872214892,-600.0,0.00039903,15]
[393641556,1762872214938,-600.0,0.00039903,15]
[393641557,1762872214982,-600.0,0.00039903,15]
[393641558,1762872215027,-600.0,0.00039903,15]
[393641559,1762872215073,-10606.37,0.00039925,14]
[393641560,1762872215120,-900.0,0.00039925,30]
[393641561,1762872215164,-534.33007598,0.00039925,20]
[393641562,1762872215209,-157.36932522,0.00039937,15]
[393641563,1762872215251,-203.17726873,0.00039937,12]
[393641564,1762872215294,-167.04697749,0.00039937,8]
[393641565,1762872215337,-327.18682046,0.00039937,15]
[393641566,1762872215379,-168.54112069,0.00039937,120]
[393641567,1762872215422,-151.0,0.00039964,14]
[393641568,1762872215463,-10606.37,0.00039966,14]
[393641569,1762872215502,-1000.0,0.00039973,5]
[393641570,1762872215543,-153.0,0.0003998,120]